[Event "XI Continental-ch America 2016"]
[Site "San Salvador"]
[Date "2016.06.05"]
[Round "11"]
[White "Kovalyov, Anton"]
[Black "Pichot, Alan"]
[Result "1/2-1/2"]
[ECO "E92"]
[WhiteElo "2602"]
[BlackElo "2532"]
[Annotator "ChessBase"]
[PlyCount "40"]
[EventDate "2016.??.??"]
[EventCountry "ESA"]
[Source "ChessBase"]
[TimeControl "40/5400+30:1800+30"]

1. Nf3 {[%emt 0:00:00]} Nf6 {[%emt 0:00:00]} 2. c4 {[%emt 0:00:00]} g6 {
[%emt 0:00:05]} 3. Nc3 {[%emt 0:00:00]} Bg7 {[%emt 0:00:22]} 4. d4 {[%emt 0:00:
03]} O-O {[%emt 0:00:30]} 5. e4 {[%emt 0:00:08]} d6 {[%emt 0:00:22]} 6. Be2 {
[%emt 0:00:05]} e5 {[%emt 0:00:39]} 7. Be3 {[%emt 0:00:07]} Ng4 {[%emt 0:00:43]
} 8. Bg5 {[%emt 0:00:08]} f6 {[%emt 0:00:20]} 9. Bh4 {[%emt 0:00:05]} Nc6 {
[%emt 0:00:43]} 10. O-O {[%emt 0:08:41]} g5 {[%emt 0:01:11]} 11. Bg3 {[%emt 0:
00:25]} f5 {[%emt 0:01:35]} 12. exf5 {[%emt 0:01:03]} exd4 {[%emt 0:00:10]} 13.
Nxd4 {[%emt 0:06:20]} Nxd4 {[%emt 0:03:11]} 14. Bxg4 {[%emt 0:00:11]} Bxf5 {
[%emt 0:00:52]} 15. h3 {[%emt 0:04:20]} Qd7 {[%emt 0:05:56]} 16. Bh5 {[%emt 0:
11:58]} Kh8 {[%emt 0:08:26]} 17. Rc1 {[%emt 0:06:52]} Be6 {[%emt 0:15:29]} 18.
Ne4 {[%emt 0:09:10]} Nf5 {[%emt 0:04:15]} 19. Bh2 {[%emt 0:02:00]} h6 {[%emt 0:
04:18]} 20. b3 {[%emt 0:02:40]} b6 {[%emt 0:11:17]} 1/2-1/2

[Event "XI Continental-ch America 2016"]
[Site "San Salvador"]
[Date "2016.06.05"]
[Round "11"]
[White "Arenas, David"]
[Black "Lenderman, Aleksandr"]
[Result "0-1"]
[ECO "C11"]
[WhiteElo "2496"]
[BlackElo "2614"]
[Annotator "ChessBase"]
[PlyCount "64"]
[EventDate "2016.??.??"]
[EventCountry "ESA"]
[Source "ChessBase"]
[TimeControl "40/5400+30:1800+30"]

1. e4 {[%emt 0:01:25]} e6 {[%emt 0:00:00]} 2. d4 {[%emt 0:00:09]} d5 {[%emt 0:
00:00]} 3. Nc3 {[%emt 0:00:08]} Nf6 {[%emt 0:00:00]} 4. e5 {[%emt 0:00:08]}
Nfd7 {[%emt 0:00:00]} 5. f4 {[%emt 0:01:13]} c5 {[%emt 0:00:00]} 6. Nf3 {
[%emt 0:00:19]} Be7 {[%emt 0:00:16]} 7. Be3 {[%emt 0:00:53]} O-O {[%emt 0:00:
08]} 8. Qd2 {[%emt 0:01:38]} b6 {[%emt 0:00:10]} 9. O-O-O {[%emt 0:07:37]} Nc6
{[%emt 0:00:59]} 10. Kb1 {[%emt 0:04:29]} c4 {[%emt 0:02:23]} 11. f5 {[%emt 0:
03:44]} b5 {[%emt 0:00:27]} 12. fxe6 {[%emt 0:06:19]} fxe6 {[%emt 0:00:15]} 13.
Nxb5 {[%emt 0:00:09]} Rb8 {[%emt 0:02:45]} 14. Nd6 {[%emt 0:00:53]} Bxd6 {
[%emt 0:01:27]} 15. exd6 {[%emt 0:00:05]} Nf6 {[%emt 0:02:10]} 16. Qe1 {
[%emt 0:13:41]} Qxd6 {[%emt 0:04:54]} 17. Bc1 {[%emt 0:05:55]} Bd7 {[%emt 0:02:
38]} 18. g3 {[%emt 0:18:02]} Ne4 {[%emt 0:07:18]} 19. Bg2 {[%emt 0:02:24]} Qa3
{[%emt 0:08:14]} 20. b3 {[%emt 0:02:03]} Qa6 {[%emt 0:00:06]} 21. Ne5 {[%emt 0:
05:14]} Nb4 {[%emt 0:18:05]} 22. a3 {[%emt 0:07:14]} Nxc2 {[%emt 0:06:14]} 23.
Kxc2 {[%emt 0:00:06]} Ba4 {[%emt 0:03:52]} 24. Bxe4 {[%emt 0:03:04]} Rxb3 {
[%emt 0:04:16]} 25. Bxh7+ {[%emt 0:05:03]} Kxh7 {[%emt 0:00:10]} 26. Kd2 {
[%emt 0:00:00]} c3+ {[%emt 0:01:39]} 27. Ke3 {[%emt 0:00:04]} Bb5 {[%emt 0:00:
41]} 28. Rd3 {[%emt 0:00:30]} Bxd3 {[%emt 0:00:05]} 29. Nxd3 {[%emt 0:00:03]}
c2 {[%emt 0:02:04]} 30. Qe2 {[%emt 0:00:16]} Qc4 {[%emt 0:01:41]} 31. Bb2 {
[%emt 0:08:18]} Kg8 {[%emt 0:01:22]} 32. Kd2 {[%emt 0:00:51]} Rxd3+ {[%emt 0:
00:28]} 0-1

[Event "XI Continental-ch America 2016"]
[Site "San Salvador"]
[Date "2016.06.05"]
[Round "11"]
[White "Flores, Diego"]
[Black "Oliva Castaneda, Kevel"]
[Result "1-0"]
[ECO "A05"]
[WhiteElo "2592"]
[BlackElo "2500"]
[Annotator "ChessBase"]
[PlyCount "177"]
[EventDate "2016.??.??"]
[EventCountry "ESA"]
[Source "ChessBase"]
[TimeControl "40/5400+30:1800+30"]

1. Nf3 {[%emt 0:00:03]} Nf6 {[%emt 0:00:00]} 2. g3 {[%emt 0:03:03]} g6 {
[%emt 0:00:46]} 3. b4 {[%emt 0:01:23]} Bg7 {[%emt 0:01:11]} 4. Bb2 {[%emt 0:00:
07]} O-O {[%emt 0:00:36]} 5. Bg2 {[%emt 0:00:33]} d6 {[%emt 0:00:45]} 6. c4 {
[%emt 0:03:48]} e5 {[%emt 0:00:09]} 7. Nc3 {[%emt 0:00:43]} c6 {[%emt 0:00:36]}
8. O-O {[%emt 0:04:43]} Re8 {[%emt 0:02:41]} 9. d3 {[%emt 0:09:20]} h6 {
[%emt 0:03:41]} 10. Rc1 {[%emt 0:01:34]} Be6 {[%emt 0:02:22]} 11. Nd2 {[%emt 0:
09:41]} a6 {[%emt 0:08:10]} 12. a4 {[%emt 0:18:42]} d5 {[%emt 0:08:11]} 13. a5
{[%emt 0:04:59]} Nbd7 {[%emt 0:06:06]} 14. Na4 {[%emt 0:01:12]} Bf8 {[%emt 0:
06:22]} 15. c5 {[%emt 0:03:31]} Qc7 {[%emt 0:06:09]} 16. e4 {[%emt 0:01:20]}
Rad8 {[%emt 0:00:29]} 17. Qe2 {[%emt 0:04:22]} Bg7 {[%emt 0:00:33]} 18. Kh1 {
[%emt 0:06:34]} Nh7 {[%emt 0:06:57]} 19. Rce1 {[%emt 0:06:08]} f5 {[%emt 0:01:
45]} 20. f4 {[%emt 0:07:37]} dxe4 {[%emt 0:03:32]} 21. dxe4 {[%emt 0:00:15]}
exf4 {[%emt 0:01:47]} 22. exf5 {[%emt 0:02:16]} Bf7 {[%emt 0:02:11]} 23. Ne4 {
[%emt 0:00:07]} gxf5 {[%emt 0:01:32]} 24. Bxg7 {[%emt 0:00:08]} fxe4 {[%emt 0:
01:43]} 25. Qb2 {[%emt 0:07:36]} f3 {[%emt 0:00:35]} 26. Bh3 {[%emt 0:00:04]}
Ne5 {[%emt 0:07:08]} 27. Bxh6 {[%emt 0:00:01]} Bc4 {[%emt 0:02:53]} 28. Rxe4 {
[%emt 0:00:46]} Bxf1 {[%emt 0:01:22]} 29. Bxf1 {[%emt 0:00:00]} Rd1 {[%emt 0:
01:09]} 30. Qb3+ {[%emt 0:00:01]} Rd5 {[%emt 0:00:17]} 31. Nc3 {[%emt 0:00:08]}
Qf7 {[%emt 0:03:23]} 32. Nxd5 {[%emt 0:00:18]} cxd5 {[%emt 0:00:12]} 33. Rd4 {
[%emt 0:01:59]} Nf6 {[%emt 0:02:11]} 34. Bf4 {[%emt 0:00:13]} Nc6 {[%emt 0:01:
34]} 35. Rd1 {[%emt 0:00:16]} Qh5 {[%emt 0:00:37]} 36. h4 {[%emt 0:03:03]} Qg4
{[%emt 0:05:00]} 37. Qb2 {[%emt 0:01:03]} f2 {[%emt 0:05:07]} 38. Qxf6 {
[%emt 0:00:49]} Re1 {[%emt 0:00:12]} 39. Kg2 {[%emt 0:00:21]} Rxd1 {[%emt 0:00:
18]} 40. Kxf2 {[%emt 0:00:28]} Rd4 {[%emt 0:05:35]} 41. Bh6 {[%emt 0:14:22]}
Nxb4 {[%emt 0:10:25]} 42. Bg5 {[%emt 0:08:35]} Nc6 {[%emt 0:07:02]} 43. Qg6+ {
[%emt 0:01:35]} Kf8 {[%emt 0:00:05]} 44. Bh6+ {[%emt 0:03:17]} Ke7 {[%emt 0:00:
05]} 45. Bg5+ {[%emt 0:00:10]} Kd7 {[%emt 0:04:10]} 46. Qf7+ {[%emt 0:00:22]}
Kc8 {[%emt 0:00:04]} 47. Qf8+ {[%emt 0:01:49]} Kd7 {[%emt 0:00:09]} 48. Qd6+ {
[%emt 0:01:49]} Ke8 {[%emt 0:05:09]} 49. Qg6+ {[%emt 0:00:13]} Kd7 {[%emt 0:00:
06]} 50. Qg7+ {[%emt 0:00:18]} Kc8 {[%emt 0:00:26]} 51. Qf8+ {[%emt 0:00:25]}
Kd7 {[%emt 0:00:32]} 52. Qf7+ {[%emt 0:01:03]} Kc8 {[%emt 0:00:42]} 53. Bf4 {
[%emt 0:01:33]} Qd7 {[%emt 0:01:54]} 54. Qf8+ {[%emt 0:00:47]} Nd8 {[%emt 0:00:
05]} 55. c6 {[%emt 0:00:11]} Rxf4+ {[%emt 0:00:46]} 56. Qxf4 {[%emt 0:00:10]}
Nxc6 {[%emt 0:00:08]} 57. h5 {[%emt 0:00:52]} Qe7 {[%emt 0:02:44]} 58. h6 {
[%emt 0:00:43]} Ne5 {[%emt 0:00:28]} 59. Qf5+ {[%emt 0:00:28]} Kc7 {[%emt 0:00:
21]} 60. h7 {[%emt 0:00:29]} Qg7 {[%emt 0:01:21]} 61. Bh3 {[%emt 0:00:27]} Ng6
{[%emt 0:00:43]} 62. Qc8+ {[%emt 0:01:18]} Kd6 {[%emt 0:00:07]} 63. Qd8+ {
[%emt 0:00:01]} Ke5 {[%emt 0:00:33]} 64. Qg5+ {[%emt 0:00:21]} Kd6 {[%emt 0:00:
27]} 65. Qxg6+ {[%emt 0:01:14]} Qxg6 {[%emt 0:00:04]} 66. h8=Q {[%emt 0:00:02]}
Qc2+ {[%emt 0:00:12]} 67. Kg1 {[%emt 0:00:10]} Qc5+ {[%emt 0:00:32]} 68. Kh2 {
[%emt 0:00:01]} Qxa5 {[%emt 0:00:19]} 69. Qf8+ {[%emt 0:00:57]} Kc6 {[%emt 0:
00:24]} 70. Qc8+ {[%emt 0:00:11]} Kd6 {[%emt 0:00:36]} 71. Qd7+ {[%emt 0:01:04]
} Kc5 {[%emt 0:01:12]} 72. Qe7+ {[%emt 0:00:16]} Kd4 {[%emt 0:00:14]} 73. Qg7+
{[%emt 0:00:40]} Kc5 {[%emt 0:00:24]} 74. Bg2 {[%emt 0:00:33]} Qd2 {[%emt 0:02:
09]} 75. Qc7+ {[%emt 0:00:28]} Kd4 {[%emt 0:00:04]} 76. Qd6 {[%emt 0:00:58]}
Qg5 {[%emt 0:00:47]} 77. Bf3 {[%emt 0:00:46]} b5 {[%emt 0:01:15]} 78. Kh3 {
[%emt 0:00:26]} Qf5+ {[%emt 0:00:14]} 79. Kg2 {[%emt 0:00:36]} Qc2+ {[%emt 0:
00:08]} 80. Kg1 {[%emt 0:00:15]} Qb1+ {[%emt 0:01:20]} 81. Kf2 {[%emt 0:00:15]}
Qa2+ {[%emt 0:02:54]} 82. Be2 {[%emt 0:00:07]} a5 {[%emt 0:01:26]} 83. Qb6+ {
[%emt 0:00:19]} Ke5 {[%emt 0:00:13]} 84. Qb8+ {[%emt 0:01:06]} Kf6 {[%emt 0:00:
18]} 85. Qd6+ {[%emt 0:00:28]} Kf7 {[%emt 0:00:19]} 86. Ke3 {[%emt 0:00:27]} a4
{[%emt 0:01:48]} 87. Bh5+ {[%emt 0:00:04]} Kg7 {[%emt 0:00:40]} 88. Qg6+ {
[%emt 0:00:04]} Kh8 {[%emt 0:00:04]} 89. Qf6+ {[%emt 0:00:03]} 1-0

[Event "XI Continental-ch America 2016"]
[Site "San Salvador"]
[Date "2016.06.05"]
[Round "11"]
[White "Giuseppe, Leiva"]
[Black "Erenburg, Sergey"]
[Result "1/2-1/2"]
[ECO "D26"]
[WhiteElo "2384"]
[BlackElo "2587"]
[Annotator "ChessBase"]
[PlyCount "142"]
[EventDate "2016.??.??"]
[EventCountry "ESA"]
[Source "ChessBase"]
[TimeControl "40/5400+30:1800+30"]

1. d4 {[%emt 0:00:00]} d5 {[%emt 0:00:00]} 2. Nf3 {[%emt 0:00:00]} Nf6 {
[%emt 0:00:00]} 3. c4 {[%emt 0:00:00]} dxc4 {[%emt 0:00:06]} 4. e3 {[%emt 0:00:
00]} e6 {[%emt 0:00:10]} 5. Bxc4 {[%emt 0:00:11]} a6 {[%emt 0:00:05]} 6. O-O {
[%emt 0:01:22]} b5 {[%emt 0:00:31]} 7. Bb3 {[%emt 0:00:19]} Bb7 {[%emt 0:00:47]
} 8. a4 {[%emt 0:00:31]} b4 {[%emt 0:01:12]} 9. Nbd2 {[%emt 0:00:44]} c5 {
[%emt 0:02:41]} 10. e4 {[%emt 0:02:35]} Be7 {[%emt 0:09:20]} 11. e5 {[%emt 0:
08:04]} Nfd7 {[%emt 0:02:55]} 12. Nc4 {[%emt 0:00:02]} O-O {[%emt 0:08:07]} 13.
Nd6 {[%emt 0:09:46]} Bxd6 {[%emt 0:03:08]} 14. exd6 {[%emt 0:00:36]} cxd4 {
[%emt 0:01:01]} 15. Nxd4 {[%emt 0:01:29]} Nc5 {[%emt 0:01:41]} 16. Bd2 {
[%emt 0:00:40]} a5 {[%emt 0:34:43]} 17. Nb5 {[%emt 0:31:27]} Nbd7 {[%emt 0:00:
47]} 18. Nc7 {[%emt 0:05:26]} Rc8 {[%emt 0:00:41]} 19. Be3 {[%emt 0:00:14]}
Nxb3 {[%emt 0:18:02]} 20. Qxb3 {[%emt 0:00:20]} Qh4 {[%emt 0:00:09]} 21. f3 {
[%emt 0:06:25]} Rfd8 {[%emt 0:00:06]} 22. Rad1 {[%emt 0:00:42]} Qh5 {[%emt 0:
09:30]} 23. Bf2 {[%emt 0:09:37]} h6 {[%emt 0:01:20]} 24. Rfe1 {[%emt 0:00:33]}
Nf6 {[%emt 0:01:13]} 25. Qc4 {[%emt 0:04:10]} Bd5 {[%emt 0:03:04]} 26. Qc5 {
[%emt 0:00:14]} Bb3 {[%emt 0:00:44]} 27. Qxh5 {[%emt 0:00:24]} Nxh5 {[%emt 0:
00:01]} 28. Rd2 {[%emt 0:01:55]} Nf6 {[%emt 0:01:04]} 29. Bb6 {[%emt 0:02:39]}
Bxa4 {[%emt 0:00:17]} 30. Bxa5 {[%emt 0:04:52]} b3 {[%emt 0:00:04]} 31. Ra1 {
[%emt 0:00:12]} Bc6 {[%emt 0:00:19]} 32. Ra3 {[%emt 0:00:18]} Rd7 {[%emt 0:00:
39]} 33. Rxb3 {[%emt 0:00:33]} Nd5 {[%emt 0:01:30]} 34. Nxd5 {[%emt 0:02:29]}
Bxd5 {[%emt 0:00:02]} 35. Rb6 {[%emt 0:00:49]} f6 {[%emt 0:00:38]} 36. Kf2 {
[%emt 0:01:07]} Kf7 {[%emt 0:00:16]} 37. Ra6 {[%emt 0:03:01]} Bc4 {[%emt 0:00:
11]} 38. Rb6 {[%emt 0:00:07]} Bd5 {[%emt 0:00:15]} 39. Bb4 {[%emt 0:00:10]} Ra7
{[%emt 0:01:34]} 40. Rb5 {[%emt 0:01:02]} Ke8 {[%emt 0:00:30]} 41. Bc5 {
[%emt 0:34:25]} Bc4 {[%emt 0:11:05]} 42. Ra5 {[%emt 0:00:00]} Rb7 {[%emt 0:01:
05]} 43. b4 {[%emt 0:00:00]} Kd7 {[%emt 0:00:49]} 44. Rd1 {[%emt 0:00:00]} Rcb8
{[%emt 0:03:30]} 45. Rda1 {[%emt 0:00:00]} Bd5 {[%emt 0:00:50]} 46. Ra7 {
[%emt 0:00:00]} Rxa7 {[%emt 0:01:19]} 47. Rxa7+ {[%emt 0:00:00]} Rb7 {[%emt 0:
00:04]} 48. Ra5 {[%emt 0:00:00]} e5 {[%emt 0:05:01]} 49. Ke3 {[%emt 0:00:00]}
Rb8 {[%emt 0:04:11]} 50. Kd3 {[%emt 0:00:00]} Ra8 {[%emt 0:01:31]} 51. Rxa8 {
[%emt 0:00:00]} Bxa8 {[%emt 0:00:02]} 52. Kc4 {[%emt 0:00:00]} e4 {[%emt 0:00:
53]} 53. fxe4 {[%emt 0:00:57]} Bxe4 {[%emt 0:00:02]} 54. g3 {[%emt 0:00:04]}
Bf3 {[%emt 0:02:06]} 55. Kb5 {[%emt 0:00:12]} Be2+ {[%emt 0:01:19]} 56. Kb6 {
[%emt 0:00:06]} g5 {[%emt 0:00:27]} 57. b5 {[%emt 0:02:11]} f5 {[%emt 0:00:29]}
58. Bb4 {[%emt 0:00:19]} f4 {[%emt 0:03:39]} 59. gxf4 {[%emt 0:01:11]} gxf4 {
[%emt 0:00:01]} 60. Kc5 {[%emt 0:00:04]} f3 {[%emt 0:00:38]} 61. Be1 {[%emt 0:
00:02]} h5 {[%emt 0:00:50]} 62. Bg3 {[%emt 0:02:38]} Bd3 {[%emt 0:00:40]} 63.
Bf2 {[%emt 0:01:07]} Be2 {[%emt 0:00:17]} 64. b6 {[%emt 0:01:33]} Ba6 {[%emt 0:
00:04]} 65. Kd5 {[%emt 0:00:04]} Bb7+ {[%emt 0:01:02]} 66. Ke5 {[%emt 0:00:03]}
Bc6 {[%emt 0:00:27]} 67. Kf5 {[%emt 0:02:38]} Kxd6 {[%emt 0:00:11]} 68. Kg5 {
[%emt 0:00:11]} Be8 {[%emt 0:00:39]} 69. Kf4 {[%emt 0:00:56]} Bc6 {[%emt 0:00:
02]} 70. h4 {[%emt 0:00:23]} Bd5 {[%emt 0:01:07]} 71. Kg5 {[%emt 0:00:21]} Bf7
1/2-1/2

[Event "XI Continental-ch America 2016"]
[Site "San Salvador"]
[Date "2016.06.05"]
[Round "11"]
[White "Ortiz Suarez, Isan Reynaldo"]
[Black "Winston, Cu Hor"]
[Result "0-1"]
[ECO "B96"]
[WhiteElo "2578"]
[BlackElo "2305"]
[Annotator "ChessBase"]
[PlyCount "67"]
[EventDate "2016.??.??"]
[EventCountry "ESA"]
[Source "ChessBase"]
[TimeControl "40/5400+30:1800+30"]

1. e4 {[%emt 0:00:00]} c5 {[%emt 0:00:00]} 2. Nf3 {[%emt 0:00:00]} d6 {[%emt 0:
00:05]} 3. d4 {[%emt 0:00:00]} Nf6 {[%emt 0:00:16]} 4. Nc3 {[%emt 0:00:00]}
cxd4 {[%emt 0:00:06]} 5. Nxd4 {[%emt 0:00:00]} a6 {[%emt 0:00:08]} 6. Bg5 {
[%emt 0:00:01]} e6 {[%emt 0:06:45]} 7. f4 {[%emt 0:00:13]} Qc7 {[%emt 0:04:29]}
8. Bxf6 {[%emt 0:00:39]} gxf6 {[%emt 0:00:07]} 9. Qd3 {[%emt 0:00:05]} b5 {
[%emt 0:00:53]} 10. Be2 {[%emt 0:00:40]} b4 {[%emt 0:03:42]} 11. Nd1 {[%emt 0:
01:09]} Nd7 {[%emt 0:01:47]} 12. Bh5 {[%emt 0:22:36]} Nc5 {[%emt 0:07:24]} 13.
Qe3 {[%emt 0:00:07]} Bh6 {[%emt 0:05:17]} 14. O-O {[%emt 0:05:12]} e5 {[%emt 0:
13:39]} 15. Ne2 {[%emt 0:07:01]} Ne6 {[%emt 0:01:33]} 16. Qf2 {[%emt 0:04:38]}
Nxf4 {[%emt 0:09:00]} 17. Nxf4 {[%emt 0:00:11]} exf4 {[%emt 0:00:30]} 18. Ne3 {
[%emt 0:00:30]} Be6 {[%emt 0:00:30]} 19. Nf5 {[%emt 0:00:30]} Bxf5 {[%emt 0:00:
30]} 20. exf5 {[%emt 0:00:30]} O-O {[%emt 0:00:30]} 21. Bf3 {[%emt 0:00:30]}
Rac8 {[%emt 0:00:30]} 22. Qh4 {[%emt 0:00:30]} Kg7 {[%emt 0:00:30]} 23. Qg4+ {
[%emt 0:00:30]} Bg5 {[%emt 0:00:30]} 24. h4 {[%emt 0:00:30]} h5 {[%emt 0:00:30]
} 25. Qh3 {[%emt 0:00:30]} Bh6 {[%emt 0:00:30]} 26. Rf2 {[%emt 0:00:30]} Qa7 {
[%emt 0:00:30]} 27. Kf1 {[%emt 0:00:30]} Qd4 {[%emt 0:00:30]} 28. Bxh5 {
[%emt 0:00:30]} Qxb2 {[%emt 0:00:30]} 29. Qg4+ {[%emt 0:00:30]} Kh8 {[%emt 0:
00:30]} 30. Qd1 {[%emt 0:00:30]} Qe5 {[%emt 0:00:30]} 31. Rb1 {[%emt 0:00:30]}
a5 {[%emt 0:00:30]} 32. Rb3 {[%emt 0:00:30]} Rc4 {[%emt 0:00:30]} 33. Rd3 {
[%emt 0:00:30]} f3 {[%emt 0:00:30]} 34. g4 {[%emt 0:00:30]} 0-1

[Event "XI Continental-ch America 2016"]
[Site "San Salvador"]
[Date "2016.06.05"]
[Round "11"]
[White "Morovic Fernandez, Ivan"]
[Black "Duran Vega, Sergio"]
[Result "1-0"]
[ECO "C43"]
[WhiteElo "2572"]
[BlackElo "2298"]
[Annotator "ChessBase"]
[PlyCount "101"]
[EventDate "2016.??.??"]
[EventCountry "ESA"]
[Source "ChessBase"]
[TimeControl "40/5400+30:1800+30"]

1. e4 {[%emt 0:00:00]} e5 {[%emt 0:00:00]} 2. Nf3 {[%emt 0:00:00]} Nf6 {
[%emt 0:00:00]} 3. d4 {[%emt 0:00:27]} Nxe4 {[%emt 0:00:00]} 4. Bd3 {[%emt 0:
00:05]} d5 {[%emt 0:00:00]} 5. dxe5 {[%emt 0:00:07]} Nc5 {[%emt 0:00:32]} 6.
Be2 {[%emt 0:00:19]} Be7 {[%emt 0:00:08]} 7. O-O {[%emt 0:00:07]} c6 {[%emt 0:
00:46]} 8. c4 dxc4 9. Qxd8+ {[%emt 0:11:05]} Bxd8 {[%emt 0:03:28]} 10. Bxc4 {
[%emt 0:00:05]} Be6 {[%emt 0:01:35]} 11. Be2 {[%emt 0:07:16]} Bc7 {[%emt 0:01:
37]} 12. Nc3 {[%emt 0:01:30]} Ncd7 {[%emt 0:03:03]} 13. Bf4 {[%emt 0:06:27]}
Bg4 {[%emt 0:07:26]} 14. Rfe1 {[%emt 0:04:08]} Bxf3 {[%emt 0:00:08]} 15. Bxf3 {
[%emt 0:00:22]} Nc5 {[%emt 0:00:43]} 16. Rad1 {[%emt 0:01:21]} Ne6 {[%emt 0:01:
09]} 17. Bg3 {[%emt 0:07:04]} Nd7 {[%emt 0:01:00]} 18. Bg4 {[%emt 0:07:54]} h5
{[%emt 0:05:11]} 19. Bxe6 {[%emt 0:05:39]} fxe6 {[%emt 0:01:08]} 20. Ne4 {
[%emt 0:05:48]} O-O-O {[%emt 0:01:19]} 21. h4 {[%emt 0:15:49]} Nb6 {[%emt 0:05:
41]} 22. Nd6+ {[%emt 0:01:43]} Bxd6 {[%emt 0:00:07]} 23. exd6 {[%emt 0:00:04]}
Kd7 {[%emt 0:00:19]} 24. Re5 {[%emt 0:00:37]} g6 {[%emt 0:02:01]} 25. Rd3 {
[%emt 0:01:39]} Nd5 {[%emt 0:04:30]} 26. Rg5 {[%emt 0:00:18]} Rdg8 {[%emt 0:00:
25]} 27. Be5 {[%emt 0:03:29]} Rh7 {[%emt 0:01:28]} 28. Rdg3 {[%emt 0:00:35]}
Rh6 {[%emt 0:00:08]} 29. Rf3 {[%emt 0:02:54]} Rh7 {[%emt 0:00:35]} 30. a4 {
[%emt 0:01:10]} b6 {[%emt 0:00:57]} 31. a5 {[%emt 0:01:08]} c5 {[%emt 0:01:19]}
32. axb6 {[%emt 0:00:52]} axb6 {[%emt 0:00:05]} 33. Rfg3 {[%emt 0:00:07]} Rh6 {
[%emt 0:08:08]} 34. Ra3 {[%emt 0:00:30]} Kc6 {[%emt 0:00:07]} 35. Ra7 {[%emt 0:
00:26]} b5 {[%emt 0:00:37]} 36. Rf7 {[%emt 0:01:17]} c4 {[%emt 0:02:40]} 37.
Kf1 {[%emt 0:04:50]} b4 {[%emt 0:02:45]} 38. Ke2 {[%emt 0:00:15]} Rd8 {[%emt 0:
07:33]} 39. Kd2 {[%emt 0:03:18]} c3+ {[%emt 0:09:13]} 40. bxc3 {[%emt 0:01:04]}
bxc3+ {[%emt 0:00:02]} 41. Kd3 {[%emt 0:35:03]} Rd7 {[%emt 0:39:48]} 42. Rxd7 {
[%emt 0:00:00]} Kxd7 {[%emt 0:00:00]} 43. g3 {[%emt 0:00:00]} Ke8 {[%emt 0:00:
00]} 44. Bg7 {[%emt 0:00:00]} Rh7 {[%emt 0:00:00]} 45. Bxc3 {[%emt 0:00:00]}
Rb7 {[%emt 0:00:00]} 46. Bd4 {[%emt 0:00:00]} Kf7 {[%emt 0:00:00]} 47. Kc4 {
[%emt 0:00:00]} Rb1 {[%emt 0:00:00]} 48. d7 {[%emt 0:00:00]} Ke7 {[%emt 0:00:
00]} 49. Rxg6 {[%emt 0:00:00]} Kxd7 {[%emt 0:00:05]} 50. Rg5 {[%emt 0:00:00]}
Rc1+ {[%emt 0:01:46]} 51. Kd3 {[%emt 0:00:00]} 1-0

[Event "XI Continental-ch America 2016"]
[Site "San Salvador"]
[Date "2016.06.05"]
[Round "11"]
[White "Mareco, Sandro"]
[Black "Cordova, Emilio"]
[Result "1/2-1/2"]
[ECO "E15"]
[WhiteElo "2612"]
[BlackElo "2602"]
[Annotator "ChessBase"]
[PlyCount "59"]
[EventDate "2016.??.??"]
[EventCountry "ESA"]
[Source "ChessBase"]
[TimeControl "40/5400+30:1800+30"]

1. d4 {[%emt 0:00:00]} e6 {[%emt 0:00:00]} 2. c4 {[%emt 0:00:00]} Nf6 {[%emt 0:
00:00]} 3. Nf3 {[%emt 0:00:00]} b6 {[%emt 0:00:20]} 4. g3 {[%emt 0:00:00]} Ba6
{[%emt 0:00:58]} 5. Qc2 {[%emt 0:00:00]} Bb7 {[%emt 0:01:02]} 6. Bg2 {[%emt 0:
00:00]} Bb4+ {[%emt 0:01:14]} 7. Bd2 {[%emt 0:00:00]} a5 {[%emt 0:01:47]} 8.
O-O {[%emt 0:00:24]} Na6 {[%emt 0:02:15]} 9. Bf4 {[%emt 0:00:22]} Bd6 {[%emt 0:
05:04]} 10. Bxd6 {[%emt 0:03:39]} cxd6 {[%emt 0:01:48]} 11. Nc3 {[%emt 0:01:04]
} d5 {[%emt 0:01:45]} 12. Nd2 {[%emt 0:02:44]} O-O {[%emt 0:03:13]} 13. Rac1 {
[%emt 0:07:41]} Rc8 {[%emt 0:02:56]} 14. Qd1 {[%emt 0:22:36]} Nc7 {[%emt 0:04:
25]} 15. Na4 {[%emt 0:01:14]} b5 {[%emt 0:12:09]} 16. cxb5 {[%emt 0:12:27]}
Nxb5 {[%emt 0:00:16]} 17. Rxc8 {[%emt 0:00:06]} Qxc8 {[%emt 0:03:12]} 18. e3 {
[%emt 0:01:31]} Nd6 {[%emt 0:08:15]} 19. Nc5 {[%emt 0:02:00]} Bc6 {[%emt 0:00:
09]} 20. Qc2 {[%emt 0:00:25]} Qa8 {[%emt 0:00:19]} 21. b3 {[%emt 0:03:12]} Rb8
{[%emt 0:03:45]} 22. Rc1 {[%emt 0:02:49]} Nfe4 {[%emt 0:02:36]} 23. Nf3 {
[%emt 0:02:04]} Nxc5 {[%emt 0:04:50]} 24. dxc5 {[%emt 0:01:51]} Nb5 {[%emt 0:
04:38]} 25. Ne5 {[%emt 0:01:39]} a4 {[%emt 0:00:13]} 26. b4 {[%emt 0:05:19]} a3
{[%emt 0:02:32]} 27. Rb1 {[%emt 0:03:28]} Nc7 {[%emt 0:00:15]} 28. e4 {[%emt 0:
08:17]} Ba4 {[%emt 0:01:26]} 29. Qc3 {[%emt 0:01:55]} f6 {[%emt 0:02:24]} 30.
Ng4 {[%emt 0:10:06]} 1/2-1/2